Cogmind - Beta 14 @@@ ROGUE MODE // 2024.08.27 @ 15:43:59 Player: Bardic Entropy Result: Destroyed by as-48396 with Assembled Rifle Performance ------------- Evolutions (0) 0 Regions Visited (4) 800 Robots Destroyed (35) 175 Value Destroyed (549) 549 Prototype IDs (27) 540 Alien Tech Used (0) 0 Bonus (367) 367 TOTAL SCORE: 2431 Bonus ------- Follower Combat Kills 100 Aligned with FarCom 300 Friendly Fire -33 Cogmind --------- Core Integrity 0/250 Matter 218/300 Energy 99/100 System Corruption 0% Temperature Cool (0) Movement Core (50) Location -9/Mines Parts ------- > --- POWER (1) -------- (None) > --- PROPULSION (2) --- (None) > --- UTILITY (2) ------ (None) > --- WEAPON (2) ------- (None) > --- INVENTORY (5) ---- Light Treads High-capacity Matter Pod (200) EM Pulse Gun Assault Rifle Mining Laser Peak State ------------ > --- POWER ------------ Light Nuclear Core > --- PROPULSION ------- Light Treads Armored Wheel > --- UTILITY ---------- High-capacity Storage Unit Targeting Computer > --- WEAPON ----------- Assault Rifle Improved Light Cannon > --- INVENTORY -------- Light Ion Engine Light Treads Light Treads Light Treads High-capacity Battery Superbattery High-capacity Matter Pod Structural Scanner Sensor Array Experimental Sensor Array Signal Interpreter Seismic Detector EM Pulse Gun Medium Laser Assault Rifle Grenade Launcher Mining Laser [Rating: 14] Favorites ----------- Power Light Ion Engine Engine Light Ion Engine Power Core Light Nuclear Core Propulsion Light Treads Treads Light Treads Wheel Wheel Utility Targeting Computer Device Seismic Detector Storage High-capacity Storage Unit Processor Targeting Computer Weapon Assault Rifle Energy Gun EM Pulse Gun Ballistic Gun Assault Rifle Ballistic Cannon Improved Light Cannon Launcher Grenade Launcher Build | -11 -10 -10 -10 -9 ------- Run | Yrd Mat Min Exi Min Slots Evolved . | . . . . . Power . | . . . . . Propulsion . | . . . . . Utility . | . . . . . Weapon . | . . . . . Parts Attached 29 | 8 13 1 . 7 Power 5 | 1 2 1 . 1 Engine 4 | 1 2 1 . . Core 1 | . . . . 1 Reactor . | . . . . . Propulsion 7 | 2 4 . . 1 Treads 5 | 2 3 . . . Leg . | . . . . . Wheel 2 | . 1 . . 1 Hover . | . . . . . Flight . | . . . . . Utility 5 | 2 3 . . . Device 1 | 1 . . . . Storage 3 | 1 2 . . . Processor 1 | . 1 . . . Hackware . | . . . . . Protection . | . . . . . Artifact . | . . . . . Weapon 12 | 3 4 . . 5 Energy Gun 5 | 2 3 . . . Energy Cannon . | . . . . . Ballistic Gun 4 | 1 1 . . 2 Ballistic Cannon 2 | . . . . 2 Launcher 1 | . . . . 1 Special Weapon . | . . . . . Impact Weapon . | . . . . . Slashing Weapon . | . . . . . Piercing Weapon . | . . . . . Special Melee Weapon . | . . . . . Unidentified Prototypes . | . . . . . Parts Lost 1 | . . . . 1 Power . | . . . . . Propulsion 1 | . . . . 1 Utility . | . . . . . Weapon . | . . . . . Highest Loss Streak 1 | . . . . 1 To Critical Strikes . | . . . . . Average Slot Usage (%) 99 | . 100 100 100 98 Engine 12 | . 14 14 14 7 Core 1 | . . . . 6 Treads 18 | . 24 14 14 13 Wheel 9 | . 3 14 14 13 Device 1 | . 4 . . . Storage 13 | . 14 14 14 13 Processor 12 | . 9 14 14 13 Energy Gun 13 | . 14 14 14 9 Ballistic Gun 13 | . 14 14 14 13 Peak Build Rating 14 | 7 8 9 10 14 Average Rating 8 | 5 7 8 9 11 On Entrance 6 | . 7 8 9 10 Naked Turns 10 | . . . . 10 Heaviest Build 51 | 13 49 49 47 51 Greatest Support 40 | 40 40 10 10 12 Greatest Overweight (x) 4 | . 4 4 4 4 Average Overweight (x) 2 | . 1 4 4 3 Largest Inventory Capacity 20 | 8 20 20 20 20 Average Capacity 16 | 7 13 20 20 19 Most Carried 18 | 4 14 15 16 18 Average Carried 12 | 2 9 14 15 16 Final Capacity 20 | 8 20 20 20 5 Final Carried 16 | 4 14 15 16 5 Class Distribution -------------------- 100% | Mutant Dominant Class ---------------- Mutant | -10/Materials Mutant | -10/Mines Mutant | -10/Exiles Mutant | -9/Mines Resources | -11 -10 -10 -10 -9 ----------- Run | Yrd Mat Min Exi Min Matter Collected 871 | 281 492 22 . 76 Remotely . | . . . . . Salvage Created 1011 | 99 748 39 . 125 Parts 78 | 5 63 4 . 6 Haulers Intercepted 2 | . 2 . . . Recyclers Shooed 4 | 1 3 . . . Parts Field Recycled . | . . . . . Retrieved Matter . | . . . . . Parts Self-Destructed . | . . . . . Prevented . | . . . . . Kills | -11 -10 -10 -10 -9 ------- Run | Yrd Mat Min Exi Min Combat Hostiles Destroyed 21 | . 14 2 . 5 Guns 17 | . 14 2 . 1 AOE 4 | . . . . 4 Classes Destroyed 9 | 2 6 . . 1 Worker 2 | . 2 . . . Tunneler 2 | 2 . . . . Hauler 2 | . 2 . . . Recycler 3 | 1 2 . . . Operator 1 | . 1 . . . Watcher 3 | . 3 . . . Swarmer 14 | . 9 2 . 3 Grunt 7 | . 5 . . 2 Zionite 1 | . . . . 1 Best Kill Streak 4 | 1 4 2 . 3 Combat Bots Only 3 | . 3 2 . 3 Max Kills in Single Turn 2 | 1 2 1 . 1 Gunslinging 1 | . 1 . . . Exploded 1 | . . . . 1 Melee . | . . . . . Uniques/NPCs Destroyed . | . . . . . Combat | -11 -10 -10 -10 -9 -------- Run | Yrd Mat Min Exi Min Hostile Shots Fired 127 | . 76 9 . 42 Missed 38 | . 23 2 . 13 Damage Taken 1129 | . 645 60 . 424 Core 252 | . 108 . . 144 Absorbed by Shields . | . . . . . Core Remaining (%) 100 | 100 . . . . Volleys Fired 93 | 6 65 4 . 18 Largest 2 | 2 2 2 . 2 Hottest 70 | 70 70 60 . 60 Shots Fired 181 | 12 130 8 . 31 Gun 175 | 12 130 8 . 25 Cannon 1 | . . . . 1 Launcher 5 | . . . . 5 Special . | . . . . . Kinetic 89 | 6 65 4 . 14 Thermal 24 | 6 18 . . . Explosive 5 | . . . . 5 Electromagnetic 63 | . 47 4 . 12 Robot Hit Streak 12 | 6 12 1 . 9 Robot Miss Streak 6 | 3 6 2 . 2 Penetration Max . | . . . . . Secondary Targets 3 | . 2 1 . . Max Gunslinging Chain 1 | . 1 1 . . Shots Hit Robots 105 | 8 73 2 . 22 Core Hits 51 | 4 37 2 . 8 Critical Kills . | . . . . . Critical Parts Destroyed . | . . . . . Critical Strikes 1 | 1 . . . . Burn 1 | 1 . . . . Melee Attacks . | . . . . . Impact . | . . . . . Slashing . | . . . . . Piercing . | . . . . . Sneak Attacks . | . . . . . Combat Hostiles . | . . . . . Follow-up Attacks . | . . . . . Damage Inflicted 1739 | 96 1082 35 . 526 Guns 1411 | 96 1007 35 . 273 Cannons 19 | . . . . 19 Explosions 309 | . 75 . . 234 Melee . | . . . . . Ramming . | . . . . . Kinetic 652 | 44 444 12 . 152 Thermal 284 | 52 187 . . 45 Explosive 189 | . . . . 189 Electromagnetic 614 | . 451 23 . 140 Impact . | . . . . . Slashing . | . . . . . Piercing . | . . . . . Highest Corruption . | . . . . . Average Corruption . | . . . . . Corruption Purged . | . . . . . Corruption Blocked . | . . . . . Overload Shots . | . . . . . Overflow Damage 4 | . . . . 4 Projectiles . | . . . . . Explosions 4 | . . . . 4 Melee . | . . . . . Knockbacks 1 | . . . . 1 Impact . | . . . . . Kinetic 1 | . . . . 1 Secondary . | . . . . . Self-Inflicted Damage 144 | . 121 . . 23 Shots 3 | . 2 . . 1 Rammed . | . . . . . Targets Rammed . | . . . . . Kicked . | . . . . . Crushed . | . . . . . Highest Temperature 108 | 27 108 . . 54 Average Temperature 29 | 11 33 . . 26 Received Heat Transfer 284 | . 156 . . 128 Siege Activations . | . . . . . Robots Corrupted . | . . . . . Combat Hostiles . | . . . . . Parts Fried 3 | . 2 . . 1 Impact Corruptions . | . . . . . Robots Melted . | . . . . . Combat Hostiles . | . . . . . Parts Melted . | . . . . . Heat Transferred 655 | 222 383 . . 50 Parts Sabotaged . | . . . . . Parts Stolen . | . . . . . Parts Stripped . | . . . . . Power Chain Reactions 2 | . 1 . . 1 Alert | -11 -10 -10 -10 -9 ------- Run | Yrd Mat Min Exi Min Peak Influence 322 | 15 322 138 . 188 Initial 88 | . 9 88 . . Average 134 | 6 212 65 . 67 Maximum Alert Level 1 | . 1 . . . Low Security (%) 61 | 100 20 100 . 100 Level 1 38 | . 79 . . . Level 2 . | . . . . . Level 3 . | . . . . . Level 4 . | . . . . . Level 5 . | . . . . . High Security . | . . . . . Max Security . | . . . . . Squads Dispatched 1 | . 1 . . . Investigation 1 | . 1 . . . Extermination . | . . . . . Reinforcement . | . . . . . Assault . | . . . . . Garrison . | . . . . . Intercept . | . . . . . Searches Triggered . | . . . . . Construction Impeded . | . . . . . Haulers Reinforced . | . . . . . Active Scanning Responses . | . . . . . Cargo Convoy Interrupts . | . . . . . Stealth | -11 -10 -10 -10 -9 --------- Run | Yrd Mat Min Exi Min Distress Signals 3 | . 3 . . . Communications Jammed . | . . . . . Distress Signals . | . . . . . Times Spotted 53 | . 31 3 . 19 Peak Tracking Total 7 | . 4 3 . 7 Tactical Retreats 3 | . 3 . . . Traps | -11 -10 -10 -10 -9 ------- Run | Yrd Mat Min Exi Min Traps Triggered . | . . . . . Indirectly . | . . . . . Trap Hack Attempts . | . . . . . Triggered . | . . . . . Disarmed 4 | . 4 . . . Reprogrammed . | . . . . . Reused . | . . . . . Traps Extracted . | . . . . . Installed . | . . . . . Triggered . | . . . . . Machines | -11 -10 -10 -10 -9 ---------- Run | Yrd Mat Min Exi Min Machines Disabled 4 | . 2 . 1 1 Max in Single Turn 2 | . 2 . . 1 Machines Repaired . | . . . . . Machines Dismantled . | . . . . . Machines Sabotaged . | . . . . . Overloaded Fab Kills . | . . . . . Hacking | -11 -10 -10 -10 -9 --------- Run | Yrd Mat Min Exi Min Machines Accessed 10 | . 8 . 2 . Terminals 7 | . 7 . . . Fabricators . | . . . . . Repair Stations . | . . . . . Recycling Units 1 | . 1 . . . Scanalyzers . | . . . . . Garrison Access . | . . . . . Total Hacks 21 | . 19 . 2 . Successful 11 | . 9 . 2 . Failed 9 | . 9 . . . Catastrophic 3 | . 3 . . . Database Lockouts 1 | . 1 . . . Manual 16 | . 15 . 1 . Terminals 18 | . 18 . . . Fabricators . | . . . . . Repair Stations . | . . . . . Recycling Units 1 | . 1 . . . Scanalyzers . | . . . . . Garrison Access . | . . . . . Terminal Hacks 10 | . 8 . 2 . Record 1 | . . . 1 . Robot Analysis 2 | . 2 . . . Prototype ID Bank 4 | . 4 . . . Disarm Traps 1 | . 1 . . . Hauler Manifests 1 | . 1 . . . Derelict Proto ID Bank 1 | . . . 1 . Fabricator Hacks . | . . . . . Repair Station Hacks . | . . . . . Recycling Unit Hacks 1 | . 1 . . . Report Inventory 1 | . 1 . . . Scanalyzer . | . . . . . Garrison Access Hacks . | . . . . . Unauthorized Hacks . | . . . . . Terminals . | . . . . . Fabricators . | . . . . . Repair Stations . | . . . . . Recycling Units . | . . . . . Scanalyzers . | . . . . . Garrison Access . | . . . . . Data Cores Recovered 1 | . 1 . . . Used . | . . . . . Hacking Detections 7 | . 7 . . . Full Trace Events 1 | . 1 . . . Feedback Events . | . . . . . Feedback Blocked . | . . . . . Robot Schematics Acquired . | . . . . . Robots Built . | . . . . . Authchips . | . . . . . Time . | . . . . . Total Robot Build Rating . | . . . . . Part Schematics Acquired . | . . . . . Parts Built . | . . . . . Authchips . | . . . . . Time . | . . . . . Total Part Build Rating . | . . . . . Parts Repaired . | . . . . . Time . | . . . . . Parts Recycled . | . . . . . Recycled Matter . | . . . . . Retrieved Matter . | . . . . . Retrieved Components . | . . . . . Parts Scanalyzed . | . . . . . Part Schematics Acquired . | . . . . . Parts Damaged . | . . . . . Bothacking | -11 -10 -10 -10 -9 ------------ Run | Yrd Mat Min Exi Min Used RIF Installer . | . . . . . Robots Hacked . | . . . . . Non-combat . | . . . . . Combat . | . . . . . Robot Hacks Applied . | . . . . . Relay Couplers Released . | . . . . . Fabnet Peak Effective % . | . . . . . Robots Rewired . | . . . . . Allies Hacked . | . . . . . Hacks Repelled . | . . . . . Allies | -11 -10 -10 -10 -9 -------- Run | Yrd Mat Min Exi Min Total Allies 3 | . . 3 . . Largest Group 3 | . . 3 3 3 Highest-Rated Group 40 | . . 40 40 40 Highest-Rated Ally 16 | . . 16 16 16 Total Orders . | . . . . . Ally Attacks 24 | . . . 2 22 Total Damage 241 | . . . 17 224 Kills 4 | . . . 1 3 Allies Corrupted . | . . . . . Allies Melted . | . . . . . Intel | -11 -10 -10 -10 -9 ------- Run | Yrd Mat Min Exi Min Robot Analysis Total 2 | . 2 . . . Derelict Logs Recovered 3 | . . 2 . 1 Drone Launches . | . . . . . Drone Recoveries . | . . . . . Exploration | -11 -10 -10 -10 -9 ------------- Run | Yrd Mat Min Exi Min Turns Passed 3478 | 127 1406 833 582 530 Spaces Moved 2129 | 62 754 572 408 333 Core 26 | 5 . . . 21 Treads 551 | 57 494 . . . Legs . | . . . . . Wheels 1552 | . 260 572 408 312 Hover . | . . . . . Flight . | . . . . . Fastest Speed 50 | 50 140 140 140 50 Average Speed 144 | 151 153 140 140 137 Slowest Speed 160 | 160 160 140 140 150 Overloaded Moves . | . . . . . Propulsion Burnouts . | . . . . . Robots Hopped . | . . . . . Cave-ins Triggered . | . . . . . Exploration Rate (%) 68 | 6 98 99 72 65 Regions Visited 4 Branch Regions 3 Pre-discovered Areas 1 | . . 1 . . Known Exits Taken 1 | . . . 1 . Unknown Exits Taken 3 | 1 1 1 . . Scrap Searched 3 | . . 1 . 2 Spaces Dug . | . . . . . Terrain Destroyed 82 | . 35 . . 47 Melee . | . . . . . Projectile . | . . . . . AOE 82 | . 35 . . 47 Terrain Rammed . | . . . . . Walls Destroyed . | . . . . . Machines Disabled . | . . . . . Actions | -11 -10 -10 -10 -9 --------- Run | Yrd Mat Min Exi Min Total 2342 | 79 876 597 419 371 Wait 58 | . 24 16 9 9 Move 2125 | 61 753 571 407 333 Hop . | . . . . . Pick Up 22 | 4 11 3 2 2 Fast Attach 7 | 7 . . . . Attach . | . . . . . Detach . | . . . . . Swap 22 | 1 13 1 . 7 Drop 15 | . 10 2 1 2 Fire 93 | 6 65 4 . 18 Melee . | . . . . . Ram . | . . . . . Kick . | . . . . . Crush . | . . . . . Escape Stasis . | . . . . . Rewire . | . . . . . Trap . | . . . . . Miscellaneous . | . . . . . Route ------- -11/Scrapyard -10/Materials (discovered 4 exits: [*Mat x3] / [*Min]) -10/Mines (discovered 3 exits: [*Mat x2] / *Exi) -10/Exiles (discovered 2 exits: *Min x2) -9/Mines (discovered 1 exit: [*Mat]) History --------- Turn | Location | Event 9 | -11/Scrapyard | Discovered new exit (range 15) 128 | -11/Scrapyard | Entered Materials 300 | -10/Materials | Build established: Mutant 690 | -10/Materials | Discovered new exit (range 4) 811 | -10/Materials | Central database locked down 971 | -10/Materials | Discovered new exit (range 7) 1132 | -10/Materials | Discovered new exit (range 14) 1482 | -10/Materials | Discovered new exit (range 9) 1534 | -10/Materials | Entered Mines 1554 | -10/Mines | Met a Derelict bent on vengeance 1678 | -10/Mines | Discovered new exit (range 13) 1819 | -10/Mines | Deemed a non-threat by the Exiles lab entrance 1819 | -10/Mines | Discovered new exit (range 5) 1857 | -10/Mines | Learned Materials terminal intel 1919 | -10/Mines | Assisted by bots powering up and referring to "LRC-V3" 1963 | -10/Mines | Discovered new exit (range 3) 2002 | -10/Mines | Learned location of Storage (-9) 2231 | -10/Mines | Found a damaged Exp. Sensor Array with a note attached 2235 | -10/Mines | Found Prototype Device 2367 | -10/Mines | Entered Exiles 2367 | -10/Exiles | Accompanied by 3 allies 2368 | -10/Exiles | Identified exit to Mines 2416 | -10/Exiles | Met 8R-AWN 2440 | -10/Exiles | Met EX-HEX 2523 | -10/Exiles | Met EX-DEC 2670 | -10/Exiles | Met EX-BIN 2689 | -10/Exiles | Aligned with FarCom system 2691 | -10/Exiles | Given EX-Vault access code 2726 | -10/Exiles | Opened EX-Vault 2734 | -10/Exiles | Found Superbattery 2793 | -10/Exiles | Exiles lab attacked by MAIN.C 2949 | -10/Exiles | Left Exiles lab with Superbattery 2949 | -10/Exiles | Entered Mines 2949 | -9/Mines | Accompanied by 3 allies 2952 | -9/Mines | Core integrity fell below 50% 3021 | -9/Mines | Discovered new exit (range 11) 3090 | -9/Mines | Found a hidden stash of uninstalled traps 3219 | -9/Mines | Lost 3 allies 3453 | -9/Mines | Assembled infested the area 3458 | -9/Mines | Assisted by a Guerilla fighting off Assembled 3458 | -9/Mines | Learned location of 1 exit from Proximity Caves 3469 | -9/Mines | Core integrity fell below 20% 3469 | -9/Mines | Released all parts (6) 3479 | -9/Mines | Destroyed by as-48396 with Assembled Rifle Last Messages --------------- 03458_ A derelict emerges from the shadows: "You need to get out of here! I've been tracking a group of Assembled to figure out where they're coming from, and they're closing on this area, come on!" 03458_ Acquired derelict log, extracted data. Data stored: Proximity Caves exits (x1). 03463_ T7-JT4(h): "I'll hold them off! Go on ahead or try to find another way!" 03465_ T7-JT4(h) destroyed. 03466_ as-47305 knocked back. 03466_ Lgt. Treads destroyed. 03469_ Released Assault Rifle. 03469_ Released Hcp. Storage Unit. 03469_ Released Targeting Computer. 03469_ Released Arm. Wheel. 03469_ Released Lgt. Nuclear Core. 03469_ Released Imp. Light Cannon. 03469_ Extracted 2 energy. 03472_ K-01 Serf destroyed. Map ----- +----------------------------------------------------+ | ??????????????????????????????????????????# ###### | | ??????????????????????????????????????????# #????? | | ?????????????????????????######???????????# #????? | | ????????????????????????## #??????????# #????? | | ????????????????????????# ########### #????? | | ????????????????????????# """ #????? | | ????????????????????????# """ ! #????? | | ???????????????????????# """ #######%####????? | | ??????????????????????# #????#=#???????? | | ?????????????????????# ## #????#%######### | | ????????????????????# ????## #????#!%* # | | ????????????????????????????### ##??# "%"###### # | | ??????????????d???????????????####???# "="#????# # | | ??????????????d??????????????????????##"["#????# # | | ????????????????????????????????????? [% #????# # | | ???????????????????????????????????? #????# # | | ???????????????????????????????????# #????# # | | ???????????????????????????????????# "" #????# # | | ???????????????????????????????????# """ #????# # | | ???????????????#???????????????????# """ #????# # | | ???????????????# ?????????????????###?####????# | | ????????????????? ??????????????????#####?????### | | ??????????????????# ???????????????## ##??????? | | ???????????????????# #######???##### ######?? | | ??????????????????##a #??? ### | | ??????????????????# a @ #???? # | | ?????????????????# a< a## #????# | | ????????????????# ???# #???## """ | | ????????????? ?????# #??## """ # | | ??????????? ???????# #### """ #? | | ????????????####?????????# a #??? | | ?????????????????????????# ! a #???? | | ?????????????????????????# %* ### ##???? | | ????????????????????????## = ###?## ##???? | | ??????????????????????### ##???## ##??? | | ?????????????????????## #???## #??? | | ?????????????????????# #### #??? | | ?????????????????????# !%* = ##??? | | ?????????????????????# ## *!!*! =%* ## ##???? | | ?????????????????????## #?##%]!!]] ### ###### | | ??????????????????????###???#==[=!## #?# # | | ????????????????????????????#[!##### ##?## | | ????????????????????????????#=/#???# ##???# | | ???????????????????????###### #???# #???## = | | ???????????????????????# #???# #???# | | ???????????????????????# #???# #???# | | ???????????????????????# ######???# #???## | | ???????????????????????# #????????# #????## | | ???????????????????????# #????????# #?????#### | | ???????????????????????# #????????# #????????# | +----------------------------------------------------+ Best States ------------- Heat Dissipation 25 Energy Generation 14 Energy Capacity 250 Matter Stores 300 Matter Capacity 300 Sight Range 16 Terrain Scan Density 10 Evasion (%) 50 Targeting Accuracy 5 Recoil Reduction 2 Item Schematics ----------------- None Robot Schematics ------------------ None Fabricated ------------ Nothing Alien Tech Used ----------------- None Achievements -------------- Backstab Challenges ------------ None Game ------ Seed VoltaicSigixReconstructor Manual? 0 Play Time 00:49:55 Cumulative 27.5 hours Start 2024.08.27 @ 13:07:45 End 2024.08.27 @ 15:43:59 Sessions 3 Manual Loads 0 Difficulty Rogue Special Mode None Game No. 26 Rogue 26 Adventurer 0 Explorer 0 Win Type - Total 0 Types 0/0/0/0/0/0/0/0/0 Lore% 10 Gallery% 16 Achievement% 16 Wizard Run 0 Options --------- Layout 2 ASCII 0 Keyboard 0 Movement Numpad Keybinds 0 Fullscreen 1 Font 20/SmallcapsGlow Map View 54x51 Zoom Use 0% Tactical HUD 1 Map Filters NONE Filters NONE Steam 1 RUN: 25b2d7a5-5e78-430c-a697-ffe7f02df3f5